bitfinex-derivatives/quotes_BTCF0:USTF0_20250325
["timestamp","ask_amount","ask_price","bid_price","bid_amount"]
[1742931747966,0.10952,87896.0,87895.0,0.75784224]
[1742931748164,0.2232657,87896.0,87895.0,0.75784224]
[1742931751282,0.10952,87896.0,87895.0,0.75784224]
[1742931751476,0.2232657,87896.0,87895.0,0.75784224]
[1742931752383,0.2232657,87896.0,87895.0,0.64409524]
[1742931753081,0.2232657,87896.0,87895.0,0.63272]
[1742931753282,0.2232657,87896.0,87895.0,0.36272]
[1742931753675,0.2232657,87896.0,87895.0,0.00192]
[1742931753877,0.1137548,87889.0,87888.0,0.20396479]
[1742931754183,0.1137548,87889.0,87888.0,0.20484479]
[1742931754184,0.11463481,87889.0,87888.0,0.20484479]
[1742931754685,0.21583481,87889.0,87888.0,0.00088]
[1742931755377,0.21683481,87889.0,87888.0,0.00088]
[1742931755979,0.21783481,87889.0,87888.0,0.00088]
[1742931757087,0.26863481,87889.0,87888.0,0.00088]
[1742931759587,0.1137561,87888.0,87887.0,0.00017068]
[1742931759783,0.1137561,87888.0,87887.0,0.00105068]
[1742931759784,0.11463611,87888.0,87887.0,0.00105068]
[1742931759989,0.21613611,87888.0,87887.0,0.00105068]
[1742931760596,0.21713611,87888.0,87887.0,0.00105068]
[1742931760977,0.10338001,87888.0,87887.0,0.11480808]
[1742931761183,0.21713611,87888.0,87887.0,0.16450808]
[1742931761390,0.21713611,87888.0,87887.0,0.05075068]
[1742931762382,0.21813611,87888.0,87887.0,0.05075068]
[1742931763179,0.10438001,87888.0,87887.0,0.44490808]
[1742931763383,0.10438001,87888.0,87887.0,0.49270808]
[1742931763585,0.1035,87888.0,87887.0,0.49270808]
[1742931764395,0.2172561,87888.0,87887.0,0.37895068]
[1742931764694,0.21713611,87888.0,87887.0,0.37895068]
[1742931764881,0.21613611,87888.0,87887.0,0.33955068]
[1742931765086,0.21613611,87888.0,87887.0,0.24205068]
[1742931765704,0.10238001,87888.0,87887.0,0.35580808]
[1742931765896,0.21613611,87888.0,87887.0,0.24105068]
[1742931767395,0.21713611,87888.0,87887.0,0.24105068]
[1742931768191,0.10438001,87888.0,87887.0,0.35480808]
[1742931768597,0.1035,87888.0,87887.0,0.44310808]
[1742931768800,0.10442,87888.0,87887.0,0.44310808]
[1742931768991,0.2181761,87888.0,87887.0,0.44310808]
[1742931769592,0.2171761,87888.0,87887.0,0.44310808]
[1742931770195,0.2161761,87888.0,87887.0,0.44310808]
[1742931770393,0.05152,87888.0,87887.0,0.80390808]
[1742931770597,0.1137445,87897.0,87895.0,0.113747]
[1742931770806,0.00104,87896.0,87895.0,0.821247]
[1742931770995,0.0004,87896.0,87895.0,0.821247]
[1742931771397,0.13621826,87901.0,87900.0,0.1137406]
[1742931771597,0.13621826,87901.0,87900.0,0.3849006]
[1742931771798,0.13621826,87901.0,87900.0,0.4383006]
[1742931772000,0.24995756,87901.0,87900.0,0.32456]
[1742931772195,0.25111756,87901.0,87900.0,0.33576686]
[1742931772402,0.25111756,87901.0,87900.0,0.32456]
[1742931772604,0.25111756,87901.0,87900.0,0.00116]
[1742931772907,0.30201756,87901.0,87900.0,0.00116]
[1742931773099,0.1657993,87901.0,87900.0,0.00116]
[1742931773403,0.5265993,87901.0,87900.0,0.00116]
[1742931773603,0.1137419,87899.0,87898.0,8e-05]
[1742931773908,0.11434191,87899.0,87898.0,8e-05]
[1742931774208,0.21874191,87899.0,87898.0,8e-05]
[1742931774403,0.1137548,87889.0,87888.0,0.4129]
[1742931774610,0.1150348,87889.0,87888.0,0.5041]
[1742931774798,0.2712348,87889.0,87888.0,0.452]
[1742931775509,0.2722348,87889.0,87888.0,0.452]
[1742931775806,0.2732348,87889.0,87888.0,0.452]
[1742931776801,0.2214348,87889.0,87888.0,0.452]
[1742931777000,0.10768,87889.0,87888.0,0.6134561]
[1742931777197,0.1064,87889.0,87888.0,0.6134561]
[1742931777396,0.10756,87889.0,87888.0,0.6134561]
[1742931777706,0.1064,87889.0,87888.0,0.6134561]
[1742931778103,0.2201548,87889.0,87888.0,0.6134561]
[1742931778303,0.05666,87889.0,87888.0,0.6134561]
[1742931778503,0.002,87889.0,87888.0,0.70757989]
[1742931778696,0.002,87889.0,87888.0,0.6613561]
[1742931778902,0.002,87889.0,87888.0,0.81949737]
[1742931779211,0.0489,87894.0,87893.0,0.1137496]
[1742931779408,0.13621826,87902.0,87893.0,0.1137496]
[1742931779409,0.13621826,87902.0,87901.0,0.1137393]
[1742931779595,0.13741827,87902.0,87901.0,0.7357393]
[1742931779796,0.13741827,87902.0,87901.0,0.8313393]
[1742931780108,0.25115627,87902.0,87901.0,0.7176]
[1742931780405,0.29985627,87902.0,87901.0,0.362]
[1742931780606,0.34855627,87902.0,87901.0,0.362]
[1742931780908,0.34855627,87902.0,87901.0,0.632]
[1742931781713,0.35155627,87902.0,87901.0,0.632]
[1742931782512,0.21533801,87902.0,87901.0,0.632]
[1742931782813,0.21833801,87902.0,87901.0,0.632]
[1742931783906,0.21833801,87902.0,87901.0,0.7457393]
[1742931784108,0.10460001,87902.0,87901.0,0.8339393]
[1742931784417,0.1034,87902.0,87901.0,0.8339393]
[1742931785613,0.00017068,87904.0,87901.0,0.9480593]
[1742931785915,0.17028536,87917.0,87916.0,0.1137199]
[1742931786103,0.17088537,87917.0,87916.0,1.13272439]
[1742931786306,0.20459531,87923.0,87917.0,0.0568586]
[1742931786510,0.0495,87934.0,87918.0,0.04616449]
[1742931786710,0.0495,87934.0,87933.0,0.3608]
[1742931786711,0.1631966,87934.0,87933.0,0.3608]
[1742931786909,0.1645166,87934.0,87933.0,0.36212]
[1742931788516,0.1665166,87934.0,87933.0,0.36212]
[1742931788703,0.1137147,87920.0,87919.0,0.00045496]
[1742931788900,0.1137147,87920.0,87919.0,0.00145496]
[1742931788901,0.11467471,87920.0,87919.0,0.00145496]
[1742931789611,0.27635471,87920.0,87919.0,0.00145496]
[1742931789818,0.27635471,87920.0,87919.0,0.00045496]
[1742931790817,0.27635471,87920.0,87919.0,0.00149496]
[1742931791019,0.32685471,87920.0,87919.0,0.00149496]
[1742931791719,0.09906001,87920.0,87919.0,0.00149496]
[1742931791918,0.09906001,87920.0,87919.0,0.37521096]
[1742931792106,0.09906001,87920.0,87919.0,0.46941096]
[1742931792307,0.21277471,87920.0,87919.0,0.46941096]
[1742931792618,0.21277471,87920.0,87919.0,0.26149496]
[1742931792921,0.25847471,87920.0,87919.0,0.26149496]
[1742931793707,0.25847471,87920.0,87919.0,0.00149496]
[1742931794618,0.25847471,87920.0,87919.0,0.00045496]
[1742931795210,0.37231471,87920.0,87919.0,0.00045496]
[1742931796706,0.37231471,87920.0,87919.0,0.00149496]
[1742931796915,0.37231471,87920.0,87919.0,0.00045496]
[1742931797512,0.32661471,87920.0,87919.0,0.00045496]
[1742931797709,0.09906001,87920.0,87919.0,0.11417096]
[1742931797913,0.09906001,87920.0,87919.0,0.11513096]
[1742931798114,0.21277471,87920.0,87919.0,0.23141496]
[1742931798712,0.21277471,87920.0,87919.0,0.34513096]
[1742931798918,0.21277471,87920.0,87919.0,0.39113096]
[1742931799113,0.21277471,87920.0,87919.0,0.32641496]
[1742931799910,0.21277471,87920.0,87919.0,0.44013096]
[1742931800421,0.21277471,87920.0,87919.0,0.32641496]
[1742931800830,0.09906001,87920.0,87919.0,0.44013096]
[1742931801122,8e-05,87923.0,87922.0,0.1137121]
[1742931801316,0.1137908,87923.0,87922.0,0.4809721]
[1742931801523,0.1147108,87923.0,87922.0,0.36726]
[1742931801723,0.2099108,87923.0,87922.0,0.36726]
[1742931803814,0.0962,87923.0,87922.0,0.4809721]
[1742931804219,0.20987081,87923.0,87922.0,0.4809721]
[1742931804415,0.21011081,87923.0,87922.0,0.4809721]
[1742931804616,0.21011081,87923.0,87922.0,0.4817721]
[1742931804824,0.21011081,87923.0,87922.0,0.36806]
[1742931805129,0.21011081,87923.0,87922.0,0.4817721]
[1742931809333,0.20987081,87923.0,87922.0,0.4329721]
[1742931809730,0.20987081,87923.0,87922.0,0.4321721]
[1742931809934,0.09640001,87923.0,87922.0,0.4321721]
[1742931810230,0.09640001,87923.0,87922.0,0.4808721]
[1742931810432,0.09544,87923.0,87922.0,0.4808721]
[1742931810834,0.21011081,87923.0,87922.0,0.4808721]
[1742931811136,0.09640001,87923.0,87922.0,0.4808721]
[1742931812333,0.21011081,87923.0,87922.0,0.4808721]
[1742931812533,0.21011081,87923.0,87922.0,0.4329721]
[1742931813236,0.09640001,87923.0,87922.0,0.4329721]
[1742931813536,0.21011081,87923.0,87922.0,0.4836721]
[1742931813922,0.20987081,87923.0,87922.0,0.4836721]
[1742931814119,0.20987081,87923.0,87922.0,0.4321721]
[1742931814325,0.21011081,87923.0,87922.0,0.4321721]
[1742931814533,0.21011081,87923.0,87922.0,0.4329721]
[1742931815236,0.21011081,87923.0,87922.0,0.4836721]
[1742931815237,0.09640001,87923.0,87922.0,0.4836721]
[1742931815533,0.09544,87923.0,87922.0,0.4836721]
[1742931815735,0.2091508,87923.0,87922.0,0.4836721]
[1742931815931,0.21011081,87923.0,87922.0,0.4329721]
[1742931816233,0.21011081,87923.0,87922.0,0.3854721]
[1742931817620,0.21011081,87923.0,87922.0,0.27176]
[1742931818428,0.21011081,87923.0,87922.0,0.00176]
[1742931818838,0.20987081,87923.0,87922.0,0.00176]
[1742931819226,0.20987081,87923.0,87922.0,0.00096]
[1742931819429,0.21011081,87923.0,87922.0,0.00096]
[1742931819635,0.21011081,87923.0,87922.0,0.00176]
[1742931820931,0.21011081,87923.0,87922.0,0.1154721]
[1742931821129,0.21011081,87923.0,87922.0,0.00176]
[1742931823839,0.20987081,87923.0,87922.0,0.00176]
[1742931824039,0.20987081,87923.0,87922.0,0.00096]
[1742931824342,0.21011081,87923.0,87922.0,0.00096]
[1742931825136,0.21011081,87923.0,87922.0,0.00176]
[1742931826034,0.21011081,87923.0,87922.0,0.0008]
[1742931826234,0.21011081,87923.0,87922.0,0.0018]
[1742931826644,0.21011081,87923.0,87922.0,0.0008]
[1742931827739,0.21011081,87923.0,87922.0,0.00176]
[1742931827934,0.21011081,87923.0,87922.0,0.2654721]
[1742931827935,0.09640001,87923.0,87922.0,0.2654721]
[1742931828149,0.00120001,87923.0,87922.0,0.2654721]
[1742931828343,0.0995,87934.0,87929.0,0.113703]
[1742931828536,0.0995,87934.0,87929.0,0.38991847]
[1742931828739,0.13713462,87930.0,87929.0,0.38991847]
[1742931828938,0.25091641,87930.0,87929.0,0.37215547]
[1742931829335,0.25091641,87930.0,87929.0,0.48585847]
[1742931829534,0.34591641,87930.0,87929.0,0.48585847]
[1742931829941,0.34791641,87930.0,87929.0,0.48585847]
[1742931830250,0.23621461,87930.0,87929.0,0.48585847]
[1742931831145,0.10032,87930.0,87929.0,0.48585847]
[1742931831336,0.099,87930.0,87929.0,0.48585847]
[1742931832433,0.2127018,87930.0,87929.0,0.48585847]
[1742931832647,0.2140218,87930.0,87929.0,0.48585847]
[1742931833847,0.10032,87930.0,87929.0,0.48585847]
[1742931834046,0.099,87930.0,87929.0,0.48585847]
[1742931834437,0.10024001,87930.0,87929.0,0.48585847]
[1742931835139,0.099,87930.0,87929.0,0.75771287]
[1742931836344,0.099,87930.0,87929.0,0.54930987]
[1742931836545,0.099,87930.0,87929.0,0.31930987]
[1742931836748,0.099,87930.0,87929.0,0.6467974]
[1742931837138,0.099,87930.0,87929.0,0.7451974]
[1742931837642,0.004,87930.0,87929.0,0.7451974]
[1742931837843,0.004,87930.0,87929.0,0.7916974]
[1742931838044,0.004,87930.0,87929.0,0.83788844]
[1742931839642,0.004,87930.0,87929.0,0.56603404]
[1742931840765,8e-05,87939.0,87933.0,0.0568489]
[1742931840938,0.0919,87945.0,87943.0,0.1136849]
[1742931841251,0.00164001,87944.0,87943.0,0.3449249]
[1742931841445,0.0923,87944.0,87943.0,0.4564449]
[1742931841648,0.09294,87944.0,87943.0,0.46766441]
[1742931841947,0.0923,87944.0,87943.0,0.46766441]
[1742931842153,0.09354001,87944.0,87943.0,0.51376441]
[1742931842653,0.0973,87944.0,87943.0,2.01376441]
[1742931843347,0.2109837,87944.0,87943.0,0.24245951]
[1742931843552,0.21222371,87944.0,87943.0,0.24245951]
[1742931844752,0.21222371,87944.0,87943.0,0.35614441]
[1742931845051,0.21222371,87944.0,87943.0,0.24245951]
[1742931845443,0.21222371,87944.0,87943.0,0.35614441]
[1742931845643,0.21222371,87944.0,87943.0,0.44603767]
[1742931845850,0.21722371,87944.0,87943.0,0.44603767]
[1742931846753,0.21722371,87944.0,87943.0,0.55972257]
[1742931847445,0.21722371,87944.0,87943.0,0.44603767]
[1742931847654,0.21722371,87944.0,87943.0,0.43481816]
[1742931848154,0.21722371,87944.0,87943.0,0.44596569]
[1742931849052,0.21722371,87944.0,87943.0,0.55965059]
[1742931849753,0.21722371,87944.0,87943.0,0.35607243]
[1742931850343,0.21722371,87944.0,87943.0,0.24238753]
[1742931851645,8e-05,87951.0,87950.0,0.1136759]
[1742931851845,8e-08,87952.0,87950.0,0.26164]
[1742931852148,0.13589461,87962.0,87959.0,0.1136643]
[1742931852345,0.13589461,87962.0,87961.0,0.1136617]
[1742931852549,0.17026277,87969.0,87968.0,0.1136526]
[1742931852751,0.28391407,87969.0,87968.0,0.25168]
[1742931853244,0.37431407,87969.0,87968.0,0.25168]
[1742931853750,0.37431407,87969.0,87968.0,0.25]
[1742931854153,0.2091313,87969.0,87968.0,0.25268]
[1742931855957,0.09548,87969.0,87968.0,0.3663326]
[1742931856158,0.05569405,87969.0,87968.0,0.37496984]
[1742931856657,0.05569405,87969.0,87968.0,0.46756984]
[1742931856854,0.16934535,87969.0,87968.0,0.46756984]
[1742931857056,0.16934535,87969.0,87968.0,0.35391724]
[1742931857242,0.16934535,87969.0,87968.0,0.36509553]
[1742931857446,0.05569405,87969.0,87968.0,0.47874813]
[1742931857649,0.16934535,87969.0,87968.0,0.47874813]
[1742931857842,0.16934535,87969.0,87968.0,0.36509553]
[1742931858452,0.05569405,87969.0,87968.0,0.47874813]
[1742931858760,0.16934535,87969.0,87968.0,0.47874813]
[1742931859648,0.16934535,87969.0,87968.0,0.32079553]
[1742931859854,0.16934535,87969.0,87968.0,0.30961724]
[1742931860053,0.16934535,87969.0,87968.0,0.01131724]
[1742931860254,0.16934535,87969.0,87968.0,0.00963724]
[1742931867765,0.16934535,87969.0,87968.0,0.001]
[1742931876958,0.16934535,87969.0,87968.0,0.10580417]
[1742931877155,0.16934535,87969.0,87968.0,0.093]
[1742931877357,0.16934535,87969.0,87968.0,0.001]
[1742931877961,0.27118392,87969.0,87968.0,0.001]
[1742931879457,0.10683857,87969.0,87968.0,0.1146526]
[1742931879651,0.10683857,87969.0,87968.0,0.4345526]
[1742931879857,0.0004,87976.0,87975.0,0.1136436]
[1742931880068,0.0004,87976.0,87975.0,0.3653236]
[1742931880465,0.0004,87976.0,87975.0,0.4583236]
[1742931881663,0.0034,87976.0,87975.0,0.4583236]
[1742931882265,0.1614423,87976.0,87975.0,0.4583236]
[1742931882461,0.2088423,87976.0,87975.0,0.4583236]
[1742931882871,0.2108423,87976.0,87975.0,0.4583236]
[1742931886863,0.2108423,87976.0,87975.0,0.4134236]
[1742931887572,0.2108423,87976.0,87975.0,0.4615236]
[1742931889980,0.2108423,87976.0,87975.0,0.29978]
[1742931890271,0.2108423,87976.0,87975.0,0.4134236]
[1742931892669,0.2108423,87976.0,87975.0,0.29978]
[1742931892968,0.2108423,87976.0,87975.0,0.00168]
[1742931893174,0.1136539,87967.0,87966.0,0.32545668]
[1742931893474,0.4744539,87967.0,87966.0,0.60079058]
[1742931893867,0.5659539,87967.0,87966.0,0.64849058]
[1742931894177,0.5659539,87967.0,87966.0,0.53483668]
[1742931894878,0.5669539,87967.0,87966.0,0.53483668]
[1742931895369,0.5679539,87967.0,87966.0,0.42118478]
[1742931895671,0.5679539,87967.0,87966.0,0.53483998]
[1742931896064,0.5679539,87967.0,87966.0,0.58183998]
[1742931896472,0.5679539,87967.0,87966.0,0.46818478]
[1742931896668,0.5679539,87967.0,87966.0,0.26469369]
[1742931898563,0.4543,87967.0,87966.0,0.37834889]
[1742931898766,0.4074,87967.0,87966.0,0.37834889]
[1742931899676,0.5210539,87967.0,87966.0,0.37834889]
[1742931899876,0.5210539,87967.0,87966.0,0.26469369]
[1742931900077,0.5210539,87967.0,87966.0,0.37834889]
[1742931900791,0.5210539,87967.0,87966.0,0.26469369]
[1742931900976,0.5667539,87967.0,87966.0,0.26469369]
[1742931901578,0.5667539,87967.0,87966.0,0.33064889]
[1742931901775,0.4531,87967.0,87966.0,0.33064889]
[1742931902174,0.0466,87967.0,87966.0,0.33064889]
[1742931902377,0.002,87967.0,87966.0,0.37464889]
[1742931902582,0.0004,87976.0,87975.0,0.1136436]
[1742931902583,0.0448,87976.0,87975.0,0.1136436]
[1742931902880,0.1584423,87976.0,87975.0,0.4905436]
[1742931903277,0.0448,87976.0,87975.0,0.4905436]
[1742931903483,0.17018277,87984.0,87976.0,0.1136423]
[1742931903670,0.17018277,87984.0,87983.0,0.1136333]
[1742931903981,0.17018277,87984.0,87983.0,0.7160333]
[1742931904178,0.17018277,87984.0,87983.0,0.96092987]
[1742931904380,0.17018277,87984.0,87983.0,0.9148133]
[1742931904985,0.17418277,87984.0,87983.0,0.9148133]
[1742931905178,0.001,87984.0,87983.0,2.46090986]
[1742931905368,0.20407063,87989.0,87988.0,0.1136268]
[1742931905571,0.20407063,87989.0,87988.0,0.3652668]
[1742931905772,8e-05,87989.0,87988.0,0.3652668]
[1742931905978,8e-05,87989.0,87988.0,0.29834]
[1742931906271,0.1137055,87989.0,87988.0,0.34544]
[1742931906469,8e-05,87989.0,87988.0,0.34544]
[1742931906675,0.09058,87989.0,87988.0,0.34544]
[1742931907287,0.2042055,87989.0,87988.0,0.34544]
[1742931907973,0.2042055,87989.0,87988.0,0.25164]
[1742931909674,0.2042055,87989.0,87988.0,0.00164]
[1742931910273,0.09058,87989.0,87988.0,0.3852668]
[1742931910477,0.0445,87989.0,87988.0,0.3852668]
[1742931910981,0.1581255,87989.0,87988.0,0.27164]
[1742931911478,0.2047255,87989.0,87988.0,0.27164]
[1742931914489,0.2047255,87989.0,87988.0,0.00164]
[1742931914685,0.147913,87989.0,87988.0,0.25]
[1742931914992,0.2615385,87989.0,87988.0,0.2516]
[1742931921695,0.0911,87989.0,87988.0,0.3652268]
[1742931922077,0.0911,87989.0,87988.0,0.4584268]
[1742931922282,0.0911,87989.0,87988.0,0.5057268]
[1742931922698,0.0911,87989.0,87988.0,0.3921]
[1742931922893,0.2047255,87989.0,87988.0,0.3921]
[1742931923094,0.2047255,87989.0,87988.0,0.5057268]
[1742931923300,0.2047255,87989.0,87988.0,0.3921]
[1742931923494,0.2047255,87989.0,87988.0,0.5057268]
[1742931924887,0.2047255,87989.0,87988.0,0.3921]
[1742931925087,0.2047255,87989.0,87988.0,0.3448]
[1742931927000,0.2047255,87989.0,87988.0,0.2516]
[1742931927292,0.2047255,87989.0,87988.0,0.0016]
[1742931927496,0.1136346,87982.0,87981.0,0.20349109]
[1742931927697,0.47563461,87982.0,87981.0,0.20461109]
[1742931927992,0.58627461,87982.0,87981.0,0.20461109]
[1742931928184,0.63167461,87982.0,87981.0,0.20461109]
[1742931930893,0.67637461,87982.0,87981.0,0.20461109]
[1742931932193,0.67637461,87982.0,87981.0,0.00112]
[1742931932388,0.1136358,87981.0,87980.0,0.00017048]
[1742931932596,0.11423581,87981.0,87980.0,0.00017048]
[1742931932797,0.20873581,87981.0,87980.0,0.00017048]
[1742931932987,0.1136513,87969.0,87968.0,0.00170513]
[1742931933186,0.12362656,87969.0,87968.0,0.02282513]
[1742931933701,0.21812656,87969.0,87968.0,0.13647773]
[1742931933897,0.20927131,87969.0,87968.0,0.13647773]
[1742931934206,0.21812657,87969.0,87968.0,0.13647773]
[1742931934803,0.21812657,87969.0,87968.0,0.23367773]
[1742931935203,0.21812657,87969.0,87968.0,0.07192513]
[1742931936000,0.21820748,87969.0,87968.0,0.07192513]
[1742931936595,0.21820748,87969.0,87968.0,0.11682513]
[1742931939000,0.21820748,87969.0,87968.0,0.16482513]
[1742931940005,0.21825788,87969.0,87968.0,0.16482513]
[1742931940505,0.17295788,87969.0,87968.0,0.27847773]
[1742931940801,0.17295788,87969.0,87968.0,0.16482513]
[1742931947720,0.21805788,87969.0,87968.0,0.16482513]
[1742931948012,0.21805788,87969.0,87968.0,0.11570513]
[1742931948211,0.21805788,87969.0,87968.0,0.11682513]
[1742931948710,0.21805788,87969.0,87968.0,0.07192513]
[1742931949508,0.21805788,87969.0,87968.0,0.02170513]
[1742931950400,0.21805788,87969.0,87968.0,0.02290513]
[1742931950598,0.21805788,87969.0,87968.0,0.11390513]
[1742931950807,0.21805788,87969.0,87968.0,0.11510513]
[1742931952611,0.10440658,87969.0,87968.0,0.22875773]
[1742931952815,0.3608,87983.0,87968.0,0.28257103]
[1742931953015,0.05843813,87979.0,87978.0,0.1136397]
[1742931953333,0.00057058,87992.0,87979.0,0.0568188]
[1742931953614,0.00057058,87992.0,87991.0,0.1136229]
[1742931953806,0.00057058,87992.0,87991.0,0.4662229]
[1742931954006,0.0485,87999.0,87998.0,0.1136139]
[1742931954202,0.23713434,88003.0,88002.0,0.1136087]
[1742931954507,0.23713434,88003.0,88002.0,0.3655687]
[1742931955016,0.35074174,88003.0,88002.0,0.3626]
[1742931955216,0.35074174,88003.0,88002.0,0.25196]
[1742931955611,0.44744174,88003.0,88002.0,0.25196]
[1742931956016,0.2103074,88003.0,88002.0,0.25196]
[1742931960321,0.0967,88003.0,88002.0,0.3655687]
[1742931960523,0.2103074,88003.0,88002.0,0.25196]
[1742931960723,0.2103074,88003.0,88002.0,0.3655687]
[1742931962025,0.0967,88003.0,88002.0,0.3655687]
[1742931962222,8e-05,88007.0,88002.0,0.3655687]
[1742931962223,8e-05,88007.0,88006.0,0.1136036]
[1742931962428,0.0004,88008.0,88007.0,0.1136023]
[1742931962732,0.0004,88008.0,88007.0,0.3555223]
[1742931964615,0.0004,88008.0,88007.0,0.4446223]
[1742931965528,8e-05,88012.0,88007.0,0.4446223]
[1742931965529,8e-05,88012.0,88010.0,0.1135984]
[1742931965722,8e-05,88012.0,88010.0,0.4661184]
[1742931966027,8e-05,88012.0,88010.0,0.5136184]
[1742931966530,0.11376758,88011.0,88010.0,0.36110283]
[1742931966724,0.25206758,88011.0,88010.0,0.36110283]
[1742931967117,0.25206758,88011.0,88010.0,0.47470123]
[1742931967933,0.13847048,88011.0,88010.0,0.47470123]
[1742931968116,0.04617048,88011.0,88010.0,0.52220123]
[1742931968333,0.04617048,88011.0,88010.0,0.56820123]
[1742931969025,0.04617048,88011.0,88010.0,0.61320123]
[1742931971526,0.15976758,88011.0,88010.0,0.40610283]
[1742931971828,0.04617048,88011.0,88010.0,0.51970123]
[1742931972212,0.09197048,88011.0,88010.0,0.51970123]
[1742931973423,0.09197048,88011.0,88010.0,0.56820123]
[1742931973620,0.0004,88024.0,88017.0,0.0567941]
[1742931973819,0.0004,88024.0,88023.0,0.4743816]
[1742931974023,0.0004,88024.0,88023.0,0.7463416]
[1742931974325,0.0004,88024.0,88023.0,0.8387416]
[1742931974722,0.0004,88024.0,88023.0,2.3387416]
[1742931975629,0.0458,88025.0,88024.0,0.1135803]
[1742931975928,0.00011309,88032.0,88029.0,0.1135739]
[1742931976120,0.0479,88039.0,88038.0,0.1135623]
[1742931976318,8e-05,88045.0,88039.0,0.113561]
[1742931976524,0.0479,88051.0,88039.0,0.37708505]
[1742931976726,0.056778,88043.0,88039.0,0.35392405]
[1742931976915,0.1135584,88042.0,88039.0,0.35392405]
[1742931977121,0.1614584,88042.0,88039.0,0.46748505]
[1742931977830,0.0479,88042.0,88039.0,0.46748505]
[1742931979723,0.0479,88042.0,88039.0,0.35392405]
[1742931979918,0.1139597,88040.0,88039.0,0.40768]
[1742931980331,0.0932,88040.0,88039.0,0.40768]
[1742931980530,0.0932,88040.0,88039.0,0.521241]
[1742931980931,0.0932,88040.0,88039.0,0.40768]
[1742931981130,0.10221738,88040.0,88039.0,0.521241]
[1742931981529,0.10221738,88040.0,88039.0,0.53252667]
[1742931981733,0.21578,88040.0,88039.0,0.41896567]
[1742931982134,0.1022203,88040.0,88039.0,0.53252667]
[1742931982438,0.21578,88040.0,88039.0,0.25192]
[1742931983134,0.1022203,88040.0,88039.0,0.25192]
[1742931983437,0.1022203,88040.0,88039.0,0.365481]
[1742931983629,0.1022203,88040.0,88039.0,0.46960738]
[1742931983824,0.0543203,88040.0,88039.0,0.46960738]
[1742931984031,0.0453,88040.0,88039.0,0.46960738]
[1742931984228,0.0453,88040.0,88039.0,0.58012738]
[1742931984430,0.0004,88040.0,88039.0,0.58012738]
[1742931989327,8e-05,88043.0,88042.0,0.1135571]
[1742931989527,0.0467,88048.0,88047.0,0.1135507]
[1742931989528,0.0487,88048.0,88047.0,0.1135507]
[1742931989732,0.05767955,88048.0,88047.0,0.3854707]
[1742931989935,0.05767955,88048.0,88047.0,1.9793707]
[1742931990340,0.05767955,88048.0,88047.0,0.4793707]
[1742931990854,0.0487,88048.0,88047.0,0.8401707]
[1742931991840,0.0571696,88056.0,88054.0,0.1135404]
[1742931992143,0.1135446,88052.0,88051.0,0.1135442]
[1742931992443,0.12267109,88052.0,88051.0,0.3855442]
[1742931992939,0.00912649,88052.0,88051.0,0.4990879]
[1742931993241,0.0004,88072.0,88060.0,0.1135339]
[1742931993538,0.0453,88062.0,88061.0,0.1135326]
[1742931993741,0.0453,88062.0,88061.0,0.29726]
[1742931993934,0.05317519,88062.0,88061.0,0.36248]
[1742931994130,0.05317519,88062.0,88061.0,0.3654926]
[1742931994339,0.05317519,88062.0,88061.0,0.37711477]
[1742931995041,0.09897519,88062.0,88061.0,0.37711477]
[1742931995241,0.21250649,88062.0,88061.0,0.26358217]
[1742931995945,0.2046313,88062.0,88061.0,0.27229928]
[1742931996945,0.2123726,88062.0,88061.0,0.27229928]
[1742932000240,0.2123726,88062.0,88061.0,0.02229928]
[1742932000641,0.22754713,88062.0,88061.0,0.02229928]
[1742932000849,0.24016523,88062.0,88061.0,0.02229928]
[1742932002550,0.12663393,88062.0,88061.0,0.02229928]
[1742932002757,0.12663393,88062.0,88061.0,0.36583188]
[1742932002946,0.12643463,88062.0,88061.0,0.36583188]
[1742932003144,0.11381653,88062.0,88061.0,0.41283188]
[1742932003543,0.0988413,88062.0,88061.0,0.41283188]
[1742932004952,0.0530413,88062.0,88061.0,0.41283188]
[1742932005153,0.06219926,88062.0,88061.0,0.41283188]
[1742932007354,0.06219926,88062.0,88061.0,0.45903188]
[1742932008153,0.06215326,88062.0,88061.0,0.45903188]
[1742932008364,0.01685326,88062.0,88061.0,0.45903188]
[1742932009259,0.01685326,88062.0,88061.0,1.95903188]
[1742932010060,0.01685325,88062.0,88061.0,1.95903188]
[1742932011564,0.00911195,88062.0,88061.0,2.31983188]
[1742932015044,0.05641195,88062.0,88061.0,2.31983188]
[1742932017659,0.00911195,88062.0,88061.0,2.31983188]
[1742932018553,0.01669886,88062.0,88061.0,2.31983188]
[1742932019263,0.06549886,88062.0,88061.0,2.31983188]
[1742932023353,0.05638691,88062.0,88061.0,2.31983188]
[1742932023554,0.05638691,88062.0,88061.0,2.36594517]
[1742932024066,8e-05,88064.0,88063.0,0.11353]
[1742932024257,0.00913541,88064.0,88063.0,0.39164329]
[1742932024455,0.00905541,88064.0,88063.0,0.43884329]
[1742932024653,0.0465,88070.0,88069.0,0.1135223]
[1742932024855,0.0465,88070.0,88069.0,0.3454423]
[1742932025158,0.0465,88070.0,88069.0,0.3926423]
[1742932025363,0.10345517,88070.0,88069.0,0.4378423]
[1742932026165,0.05695517,88070.0,88069.0,0.7986423]
[1742932026363,0.05695517,88070.0,88069.0,0.84478205]
[1742932026564,0.10163905,88074.0,88073.0,0.1135171]
[1742932026759,0.091,88080.0,88079.0,0.1135094]
[1742932026950,0.091,88080.0,88079.0,0.43164915]
[1742932027151,0.091,88080.0,88079.0,0.47894915]
[1742932027352,0.13583071,88081.0,88080.0,0.1135081]
[1742932027556,0.13583071,88081.0,88080.0,0.4328081]
[1742932027767,0.13583071,88081.0,88080.0,0.47894785]
[1742932027965,0.13583071,88081.0,88080.0,2.02394785]
[1742932028168,0.0473,88082.0,88080.0,1.91043975]
[1742932028470,0.0473,88082.0,88081.0,0.4743068]
[1742932028657,0.0473,88082.0,88081.0,0.7362268]
[1742932028859,0.0473,88082.0,88081.0,0.8285268]
[1742932029060,0.0473,88082.0,88081.0,2.3285268]
[1742932030070,0.2091,88082.0,88081.0,2.3285268]
[1742932030364,0.1618,88082.0,88081.0,2.3285268]
[1742932030570,0.2086,88082.0,88081.0,2.37459474]
[1742932031763,0.1618,88082.0,88081.0,2.37459474]
[1742932033971,0.1618,88082.0,88081.0,2.3285268]
[1742932034477,0.18226627,88082.0,88081.0,2.3285268]
[1742932035961,0.18226627,88082.0,88081.0,0.8939668]
[1742932036478,0.18226627,88082.0,88081.0,2.3939668]
[1742932037372,0.18226627,88082.0,88081.0,2.4388668]
[1742932037679,1e-08,88082.0,88081.0,2.4388668]
[1742932038364,0.0945,88089.0,88081.0,2.32536]
[1742932038567,0.0455,88089.0,88087.0,0.1134991]